[Event "Titled Tuesday Blitz July 11 Late 2023"]
[White "Fieberg, Samuel"]
[Black "Manelyuk, Daniil"]
[WhiteFideId "12901717"]
[BlackFideId "44173920"]
[WhiteElo "2377"]
[BlackElo "2648"]
[Result "1/2-1/2"]
[Round "2"]
[TimeControl "180+2"]
[Date "2023.07.11"]
[WhiteClock "0:00:16"]
[BlackClock "0:01:06"]
[Board "122"]

1. Nf3 {[%clk 0:02:59]}  d5 {[%clk 0:02:37]} 2. d4 {[%clk 0:02:52]}  Nf6 {[%clk 0:02:34]} 3. e3 {[%clk 0:02:51]}  g6 {[%clk 0:02:35]} 4. c4 {[%clk 0:02:50]}  Bg7 {[%clk 0:02:35]} 5. Nc3 {[%clk 0:02:48]}  O-O {[%clk 0:02:35]} 6. cxd5 {[%clk 0:02:49]}  Nxd5 {[%clk 0:02:36]} 7. Bc4 {[%clk 0:02:49]}  Nb6 {[%clk 0:02:36]} 8. Bb3 {[%clk 0:02:49]}  N8d7 {[%clk 0:02:37]} 9. O-O {[%clk 0:02:48]}  c5 {[%clk 0:02:37]} 10. h3 {[%clk 0:02:42]}  cxd4 {[%clk 0:02:37]} 11. Nxd4 {[%clk 0:02:43]}  Nc5 {[%clk 0:02:37]} 12. Bc2 {[%clk 0:02:29]}  Bd7 {[%clk 0:02:34]} 13. Nb3 {[%clk 0:02:27]}  Nxb3 {[%clk 0:02:32]} 14. axb3 {[%clk 0:02:24]}  Bc6 {[%clk 0:02:32]} 15. Qxd8 {[%clk 0:02:16]}  Rfxd8 {[%clk 0:02:33]} 16. Rd1 {[%clk 0:02:16]}  a6 {[%clk 0:02:32]} 17. Bd2 {[%clk 0:02:14]}  Rac8 {[%clk 0:02:29]} 18. Be1 {[%clk 0:02:13]}  Nd5 {[%clk 0:02:29]} 19. Bd3 {[%clk 0:02:06]}  Nb4 {[%clk 0:02:24]} 20. Bc4 {[%clk 0:02:03]}  b5 {[%clk 0:02:22]} 21. Be2 {[%clk 0:02:03]}  Nc2 {[%clk 0:02:21]} 22. Rxd8+ {[%clk 0:01:58]}  Rxd8 {[%clk 0:02:21]} 23. Rc1 {[%clk 0:01:58]}  Nxe1 {[%clk 0:02:20]} 24. Rxe1 {[%clk 0:01:59]}  b4 {[%clk 0:02:19]} 25. Na4 {[%clk 0:01:07]}  a5 {[%clk 0:02:07]} 26. Rd1 {[%clk 0:01:05]}  Rxd1+ {[%clk 0:02:06]} 27. Bxd1 {[%clk 0:01:06]}  Bxa4 {[%clk 0:02:06]} 28. bxa4 {[%clk 0:01:06]}  Bxb2 {[%clk 0:02:07]} 29. Bb3 {[%clk 0:01:06]}  Kg7 {[%clk 0:02:07]} 30. Kf1 {[%clk 0:01:06]}  Kf6 {[%clk 0:02:08]} 31. Ke2 {[%clk 0:01:07]}  e6 {[%clk 0:02:09]} 32. Kd3 {[%clk 0:01:07]}  Be5 {[%clk 0:02:06]} 33. Kc4 {[%clk 0:01:07]}  Bc7 {[%clk 0:02:06]} 34. Kc5 {[%clk 0:01:04]}  Ke5 {[%clk 0:02:06]} 35. f3 {[%clk 0:01:04]}  g5 {[%clk 0:02:06]} 36. Kc4 {[%clk 0:00:58]}  Bb6 {[%clk 0:02:05]} 37. Kd3 {[%clk 0:00:58]}  f5 {[%clk 0:02:04]} 38. g4 {[%clk 0:00:56]}  h6 {[%clk 0:02:02]} 39. Ba2 {[%clk 0:00:54]}  Kd6 {[%clk 0:01:58]} 40. Bb3 {[%clk 0:00:53]}  Ke7 {[%clk 0:01:57]} 41. Ba2 {[%clk 0:00:49]}  Kf6 {[%clk 0:01:57]} 42. Bb3 {[%clk 0:00:49]}  e5 {[%clk 0:01:57]} 43. e4 {[%clk 0:00:47]}  fxg4 {[%clk 0:01:39]} 44. fxg4 {[%clk 0:00:42]}  Ke7 {[%clk 0:01:38]} 45. Kc4 {[%clk 0:00:42]}  Kd6 {[%clk 0:01:39]} 46. Kb5 {[%clk 0:00:43]}  Bd8 {[%clk 0:01:39]} 47. Bc4 {[%clk 0:00:42]}  Ke7 {[%clk 0:01:35]} 48. Kc6 {[%clk 0:00:41]}  Kf6 {[%clk 0:01:36]} 49. Kd7 {[%clk 0:00:38]}  Bb6 {[%clk 0:01:35]} 50. Ke8 {[%clk 0:00:36]}  Kg6 {[%clk 0:01:34]} 51. Bb3 {[%clk 0:00:34]}  h5 {[%clk 0:01:28]} 52. Bf7+ {[%clk 0:00:25]}  Kh6 {[%clk 0:01:28]} 53. Ke7 {[%clk 0:00:14]}  Bd4 {[%clk 0:01:26]} 54. Kf6 {[%clk 0:00:13]}  Bc3 {[%clk 0:01:24]} 55. Bb3 {[%clk 0:00:12]}  Bb2 {[%clk 0:01:23]} 56. Kf7 {[%clk 0:00:11]}  Ba1 {[%clk 0:01:21]} 57. Kf6 {[%clk 0:00:12]}  Bd4 {[%clk 0:01:22]} 58. Kf5 {[%clk 0:00:12]}  Bc3 {[%clk 0:01:20]} 59. Bf7 {[%clk 0:00:11]}  Ba1 {[%clk 0:01:18]} 60. Kf6 {[%clk 0:00:11]}  Bc3 {[%clk 0:01:16]} 61. Ba2 {[%clk 0:00:10]}  hxg4 {[%clk 0:01:11]} 62. hxg4 {[%clk 0:00:10]}  Bd4 {[%clk 0:01:12]} 63. Ke6 {[%clk 0:00:10]}  Ba1 {[%clk 0:01:13]} 64. Kf7 {[%clk 0:00:10]}  Bb2 {[%clk 0:01:14]} 65. Bb3 {[%clk 0:00:10]}  Bc3 {[%clk 0:01:15]} 66. Kf6 {[%clk 0:00:10]}  Bd4 {[%clk 0:01:15]} 67. Kf7 {[%clk 0:00:11]}  Be3 {[%clk 0:01:15]} 68. Ke6 {[%clk 0:00:11]}  Bd4 {[%clk 0:01:15]} 69. Kd5 {[%clk 0:00:11]}  Kg6 {[%clk 0:01:14]} 70. Kc6 {[%clk 0:00:12]}  Kf6 {[%clk 0:01:13]} 71. Kb5 {[%clk 0:00:13]}  Ke7 {[%clk 0:01:11]} 72. Kxa5 {[%clk 0:00:13]}  Kd6 {[%clk 0:01:11]} 73. Kxb4 {[%clk 0:00:12]}  Be3 {[%clk 0:01:09]} 74. Kb5 {[%clk 0:00:12]}  Bf2 {[%clk 0:01:09]} 75. Bd5 {[%clk 0:00:12]}  Be3 {[%clk 0:01:09]} 76. Ka6 {[%clk 0:00:12]}  Kc7 {[%clk 0:01:08]} 77. a5 {[%clk 0:00:12]}  Bf2 {[%clk 0:01:07]} 78. Kb5 {[%clk 0:00:13]}  Be3 {[%clk 0:01:05]} 79. a6 {[%clk 0:00:13]}  Ba7 {[%clk 0:01:05]} 80. Bb7 {[%clk 0:00:12]}  Kd6 {[%clk 0:01:05]} 81. Kc4 {[%clk 0:00:13]}  Bf2 {[%clk 0:01:04]} 82. Bd5 {[%clk 0:00:14]}  Ba7 {[%clk 0:01:05]} 83. Bb7 {[%clk 0:00:14]}  Bg1 {[%clk 0:01:05]} 84. Bc8 {[%clk 0:00:14]}  Ba7 {[%clk 0:01:05]} 85. Bf5 {[%clk 0:00:15]}  Bg1 {[%clk 0:01:05]} 86. Bc8 {[%clk 0:00:15]}  Ba7 {[%clk 0:01:06]} 87. Bb7 {[%clk 0:00:16]} 1/2-1/2


[Site "https://www.chess.com"]

[Event "Titled Tuesday Blitz July 11 Late 2023"]
[White "Fantinel, Thibault"]
[Black "Villuendas Valero, Adrian"]
[WhiteFideId "663395"]
[BlackFideId "2262460"]
[WhiteElo "2626"]
[BlackElo "2376"]
[Result "1-0"]
[Round "2"]
[TimeControl "180+2"]
[Date "2023.07.11"]
[WhiteClock "0:00:42"]
[BlackClock "0:00:00"]
[Board "123"]

1. d4 {[%clk 0:03:00]}  d6 {[%clk 0:02:59]} 2. Nf3 {[%clk 0:02:59]}  Nf6 {[%clk 0:02:56]} 3. Bf4 {[%clk 0:02:57]}  g6 {[%clk 0:02:56]} 4. c3 {[%clk 0:02:52]}  Bg7 {[%clk 0:02:56]} 5. Nbd2 {[%clk 0:02:52]}  O-O {[%clk 0:02:56]} 6. e4 {[%clk 0:02:52]}  Nfd7 {[%clk 0:02:49]} 7. Be2 {[%clk 0:02:51]}  e5 {[%clk 0:02:46]} 8. dxe5 {[%clk 0:02:51]}  dxe5 {[%clk 0:02:44]} 9. Be3 {[%clk 0:02:52]}  c6 {[%clk 0:02:41]} 10. O-O {[%clk 0:02:52]}  Qc7 {[%clk 0:02:38]} 11. Nc4 {[%clk 0:02:51]}  Nb6 {[%clk 0:02:22]} 12. Qd6 {[%clk 0:02:42]}  Qxd6 {[%clk 0:02:15]} 13. Nxd6 {[%clk 0:02:43]}  Rd8 {[%clk 0:02:11]} 14. Nxc8 {[%clk 0:02:43]}  Nxc8 {[%clk 0:02:07]} 15. Rfd1 {[%clk 0:02:43]}  Nd7 {[%clk 0:02:01]} 16. Rd2 {[%clk 0:02:32]}  Ncb6 {[%clk 0:01:44]} 17. a4 {[%clk 0:02:23]}  Nf6 {[%clk 0:01:33]} 18. a5 {[%clk 0:02:21]}  Rxd2 {[%clk 0:01:28]} 19. Nxd2 {[%clk 0:02:22]}  Nbd7 {[%clk 0:01:26]} 20. f3 {[%clk 0:02:18]}  Bf8 {[%clk 0:01:16]} 21. Nc4 {[%clk 0:02:15]}  Nh5 {[%clk 0:01:01]} 22. Rd1 {[%clk 0:02:14]}  Nhf6 {[%clk 0:00:50]} 23. b4 {[%clk 0:02:08]}  c5 {[%clk 0:00:44]} 24. b5 {[%clk 0:02:07]}  b6 {[%clk 0:00:40]} 25. Ra1 {[%clk 0:01:56]}  Rb8 {[%clk 0:00:36]} 26. axb6 {[%clk 0:01:53]}  axb6 {[%clk 0:00:37]} 27. Ra7 {[%clk 0:01:52]}  Bg7 {[%clk 0:00:29]} 28. Bd1 {[%clk 0:01:50]}  Nf8 {[%clk 0:00:29]} 29. Bb3 {[%clk 0:01:46]}  Ne6 {[%clk 0:00:27]} 30. Nxe5 {[%clk 0:01:41]}  Nxe4 {[%clk 0:00:19]} 31. Nxf7 {[%clk 0:01:41]}  Nxc3 {[%clk 0:00:17]} 32. Bxe6 {[%clk 0:01:39]}  Re8 {[%clk 0:00:16]} 33. Ng5+ {[%clk 0:01:29]}  Kh8 {[%clk 0:00:16]} 34. Bd2 {[%clk 0:01:10]}  Nxb5 {[%clk 0:00:13]} 35. Rb7 {[%clk 0:01:08]}  Nd4 {[%clk 0:00:13]} 36. Bc4 {[%clk 0:01:03]}  h6 {[%clk 0:00:09]} 37. Ne4 {[%clk 0:01:00]}  Nc6 {[%clk 0:00:06]} 38. Rxb6 {[%clk 0:00:56]}  Ne5 {[%clk 0:00:04]} 39. Bf1 {[%clk 0:00:52]}  Nd7 {[%clk 0:00:05]} 40. Rxg6 {[%clk 0:00:50]}  Ra8 {[%clk 0:00:04]} 41. g3 {[%clk 0:00:43]}  Ra2 {[%clk 0:00:02]} 42. Bc3 {[%clk 0:00:41]}  Bxc3 {[%clk 0:00:00]} 43. Nxc3 {[%clk 0:00:42]} 1-0


[Site "https://www.chess.com"]

[Event "Titled Tuesday Blitz July 11 Late 2023"]
[White "GAO"]
[Black "Ozdemir, Serhan Berat"]
[BlackFideId "6374611"]
[WhiteElo "2375"]
[BlackElo "2620"]
[Result "0-1"]
[Round "2"]
[TimeControl "180+2"]
[Date "2023.07.11"]
[WhiteClock "0:00:41"]
[BlackClock "0:00:33"]
[Board "124"]

1. e4 {[%clk 0:02:56]}  c5 {[%clk 0:02:59]} 2. Nf3 {[%clk 0:02:55]}  e6 {[%clk 0:02:59]} 3. c3 {[%clk 0:02:55]}  d5 {[%clk 0:02:59]} 4. exd5 {[%clk 0:02:56]}  exd5 {[%clk 0:03:00]} 5. d4 {[%clk 0:02:56]}  Nf6 {[%clk 0:03:01]} 6. Bb5+ {[%clk 0:02:55]}  Nc6 {[%clk 0:03:01]} 7. O-O {[%clk 0:02:55]}  Be7 {[%clk 0:03:01]} 8. dxc5 {[%clk 0:02:56]}  Bxc5 {[%clk 0:03:00]} 9. Re1+ {[%clk 0:02:54]}  Be6 {[%clk 0:03:01]} 10. Nd4 {[%clk 0:02:50]}  O-O {[%clk 0:03:01]} 11. Nxc6 {[%clk 0:02:41]}  bxc6 {[%clk 0:03:02]} 12. Bxc6 {[%clk 0:02:42]}  Qb6 {[%clk 0:02:55]} 13. Bxa8 {[%clk 0:02:33]}  Bxf2+ {[%clk 0:02:55]} 14. Kh1 {[%clk 0:02:33]}  Bxe1 {[%clk 0:02:44]} 15. Qxe1 {[%clk 0:02:28]}  Rxa8 {[%clk 0:02:43]} 16. Qg1 {[%clk 0:02:07]}  Qb5 {[%clk 0:02:11]} 17. a4 {[%clk 0:02:01]}  Qe2 {[%clk 0:02:09]} 18. Be3 {[%clk 0:01:51]}  Qxb2 {[%clk 0:02:00]} 19. Nd2 {[%clk 0:01:41]}  a6 {[%clk 0:01:43]} 20. Nf3 {[%clk 0:01:25]}  Ne4 {[%clk 0:01:25]} 21. Bd4 {[%clk 0:01:21]}  Rb8 {[%clk 0:01:14]} 22. c4 {[%clk 0:01:17]}  Qc2 {[%clk 0:00:54]} 23. Be5 {[%clk 0:01:07]}  Nf2+ {[%clk 0:00:48]} 24. Qxf2 {[%clk 0:01:03]}  Qxf2 {[%clk 0:00:49]} 25. Bxb8 {[%clk 0:01:00]}  dxc4 {[%clk 0:00:48]} 26. Be5 {[%clk 0:01:00]}  f6 {[%clk 0:00:46]} 27. Bd4 {[%clk 0:00:59]}  Qc2 {[%clk 0:00:44]} 28. Re1 {[%clk 0:00:56]}  Kf7 {[%clk 0:00:44]} 29. Rf1 {[%clk 0:00:53]}  Bd5 {[%clk 0:00:34]} 30. h3 {[%clk 0:00:42]}  Bxf3 {[%clk 0:00:33]} 31. Rxf3 {[%clk 0:00:43]}  Qxa4 {[%clk 0:00:33]} 32. Rc3 {[%clk 0:00:41]}  Qd1+ {[%clk 0:00:33]} 33. Kh2 {[%clk 0:00:41]}  Qxd4 {[%clk 0:00:33]} 34. Ra3 {[%clk 0:00:40]}  Qd6+ {[%clk 0:00:33]} 35. Kh1 {[%clk 0:00:39]}  Qxa3 {[%clk 0:00:32]} 36. Kh2 {[%clk 0:00:40]}  c3 {[%clk 0:00:32]} 37. Kh1 {[%clk 0:00:40]}  c2 {[%clk 0:00:33]} 38. Kh2 {[%clk 0:00:41]}  c1=Q {[%clk 0:00:33]} 0-1


[Site "https://www.chess.com"]

[Event "Titled Tuesday Blitz July 11 Late 2023"]
[White "K2JW"]
[Black "profedechess93"]
[WhiteElo "2370"]
[BlackElo "2614"]
[Result "0-1"]
[Round "2"]
[TimeControl "180+2"]
[Date "2023.07.11"]
[WhiteClock "0:00:02"]
[BlackClock "0:01:19"]
[Board "125"]

1. d4 {[%clk 0:03:00]}  d5 {[%clk 0:02:59]} 2. c4 {[%clk 0:02:59]}  c6 {[%clk 0:02:59]} 3. Nc3 {[%clk 0:02:59]}  Nf6 {[%clk 0:03:00]} 4. e3 {[%clk 0:02:59]}  e6 {[%clk 0:03:00]} 5. Nf3 {[%clk 0:02:59]}  Nbd7 {[%clk 0:03:00]} 6. Be2 {[%clk 0:02:59]}  Bd6 {[%clk 0:03:00]} 7. O-O {[%clk 0:02:58]}  O-O {[%clk 0:03:01]} 8. b3 {[%clk 0:02:57]}  Qe7 {[%clk 0:03:01]} 9. Bb2 {[%clk 0:02:55]}  Re8 {[%clk 0:03:01]} 10. Bd3 {[%clk 0:02:38]}  dxc4 {[%clk 0:03:00]} 11. bxc4 {[%clk 0:02:31]}  e5 {[%clk 0:03:01]} 12. c5 {[%clk 0:02:31]}  Bc7 {[%clk 0:03:00]} 13. Bc4 {[%clk 0:02:19]}  e4 {[%clk 0:02:56]} 14. Ng5 {[%clk 0:02:15]}  Rf8 {[%clk 0:02:35]} 15. Qb3 {[%clk 0:02:02]}  Bxh2+ {[%clk 0:02:22]} 16. Kh1 {[%clk 0:02:01]}  Bc7 {[%clk 0:02:19]} 17. Bxf7+ {[%clk 0:01:51]}  Rxf7 {[%clk 0:02:18]} 18. Nxf7 {[%clk 0:01:21]}  Qxf7 {[%clk 0:02:17]} 19. Qxf7+ {[%clk 0:01:22]}  Kxf7 {[%clk 0:02:17]} 20. f3 {[%clk 0:01:16]}  exf3 {[%clk 0:02:17]} 21. gxf3 {[%clk 0:01:16]}  b6 {[%clk 0:02:09]} 22. cxb6 {[%clk 0:01:05]}  Nxb6 {[%clk 0:02:08]} 23. e4 {[%clk 0:00:59]}  Nc4 {[%clk 0:02:08]} 24. Bc1 {[%clk 0:00:59]}  Bb6 {[%clk 0:02:07]} 25. Rd1 {[%clk 0:00:56]}  Ba6 {[%clk 0:01:55]} 26. e5 {[%clk 0:00:50]}  Nd5 {[%clk 0:01:54]} 27. Ne4 {[%clk 0:00:45]}  h6 {[%clk 0:01:53]} 28. f4 {[%clk 0:00:34]}  Ke6 {[%clk 0:01:48]} 29. Ng3 {[%clk 0:00:28]}  Nce3 {[%clk 0:01:40]} 30. Bxe3 {[%clk 0:00:26]}  Nxe3 {[%clk 0:01:41]} 31. Rd2 {[%clk 0:00:22]}  Rf8 {[%clk 0:01:41]} 32. Re1 {[%clk 0:00:20]}  Ba5 {[%clk 0:01:35]} 33. Rxe3 {[%clk 0:00:17]}  Bxd2 {[%clk 0:01:35]} 34. f5+ {[%clk 0:00:17]}  Kd5 {[%clk 0:01:35]} 35. Ra3 {[%clk 0:00:16]}  Bb5 {[%clk 0:01:25]} 36. e6 {[%clk 0:00:16]}  a5 {[%clk 0:01:23]} 37. Kg2 {[%clk 0:00:08]}  Kxd4 {[%clk 0:01:21]} 38. Rf3 {[%clk 0:00:06]}  c5 {[%clk 0:01:20]} 39. Nh5 {[%clk 0:00:04]}  Bc6 {[%clk 0:01:19]} 40. Nxg7 {[%clk 0:00:04]}  Bxf3+ {[%clk 0:01:18]} 41. Kxf3 {[%clk 0:00:02]}  Bg5 {[%clk 0:01:19]} 0-1


[Site "https://www.chess.com"]

[Event "Titled Tuesday Blitz July 11 Late 2023"]
[White "Pesotskiy, Mikhail"]
[Black "Veiga, Jose Francisco R P Neves"]
[WhiteFideId "34164453"]
[BlackFideId "1930087"]
[WhiteElo "2370"]
[BlackElo "2612"]
[Result "1/2-1/2"]
[Round "2"]
[TimeControl "180+2"]
[Date "2023.07.11"]
[WhiteClock "0:00:20"]
[BlackClock "0:00:16"]
[Board "126"]

1. d4 {[%clk 0:02:59]}  Nf6 {[%clk 0:02:59]} 2. c4 {[%clk 0:02:54]}  e6 {[%clk 0:02:59]} 3. Nc3 {[%clk 0:02:52]}  Bb4 {[%clk 0:02:56]} 4. Qc2 {[%clk 0:02:52]}  O-O {[%clk 0:02:54]} 5. a3 {[%clk 0:02:52]}  Bxc3+ {[%clk 0:02:53]} 6. Qxc3 {[%clk 0:02:53]}  d5 {[%clk 0:02:54]} 7. Bg5 {[%clk 0:02:53]}  h6 {[%clk 0:02:50]} 8. Bxf6 {[%clk 0:02:53]}  Qxf6 {[%clk 0:02:51]} 9. Nf3 {[%clk 0:02:53]}  c6 {[%clk 0:02:43]} 10. e3 {[%clk 0:02:53]}  Nd7 {[%clk 0:02:43]} 11. Be2 {[%clk 0:02:53]}  dxc4 {[%clk 0:02:42]} 12. Bxc4 {[%clk 0:02:52]}  Nb6 {[%clk 0:02:42]} 13. Ba2 {[%clk 0:02:52]}  Nd5 {[%clk 0:02:36]} 14. Qd3 {[%clk 0:02:52]}  c5 {[%clk 0:02:34]} 15. dxc5 {[%clk 0:02:43]}  Qxb2 {[%clk 0:02:27]} 16. O-O {[%clk 0:02:43]}  Qc3 {[%clk 0:02:19]} 17. Qd4 {[%clk 0:02:18]}  Qxd4 {[%clk 0:02:14]} 18. exd4 {[%clk 0:02:14]}  Ne7 {[%clk 0:02:00]} 19. Ne5 {[%clk 0:02:10]}  Rd8 {[%clk 0:01:53]} 20. Rfd1 {[%clk 0:02:10]}  Nc6 {[%clk 0:01:46]} 21. Nxc6 {[%clk 0:01:47]}  bxc6 {[%clk 0:01:47]} 22. Bb3 {[%clk 0:01:46]}  Ba6 {[%clk 0:01:29]} 23. Ba4 {[%clk 0:01:46]}  Rac8 {[%clk 0:01:20]} 24. Rab1 {[%clk 0:01:42]}  Kf8 {[%clk 0:01:18]} 25. f3 {[%clk 0:01:41]}  Ke7 {[%clk 0:01:16]} 26. Kf2 {[%clk 0:01:41]}  Rd5 {[%clk 0:01:14]} 27. Rb4 {[%clk 0:01:26]}  Rcd8 {[%clk 0:00:36]} 28. Bxc6 {[%clk 0:01:08]}  Rxc5 {[%clk 0:00:35]} 29. dxc5 {[%clk 0:01:04]}  Rxd1 {[%clk 0:00:34]} 30. Bb7 {[%clk 0:00:57]}  Bd3 {[%clk 0:00:18]} 31. c6 {[%clk 0:00:54]}  Rc1 {[%clk 0:00:18]} 32. Rd4 {[%clk 0:00:53]}  Bb5 {[%clk 0:00:18]} 33. Rd7+ {[%clk 0:00:49]}  Kf6 {[%clk 0:00:14]} 34. Rc7 {[%clk 0:00:46]}  a5 {[%clk 0:00:14]} 35. Rc8 {[%clk 0:00:45]}  Ke7 {[%clk 0:00:13]} 36. Kg3 {[%clk 0:00:30]}  f5 {[%clk 0:00:13]} 37. Rc7+ {[%clk 0:00:15]}  Kf6 {[%clk 0:00:13]} 38. h4 {[%clk 0:00:13]}  g5 {[%clk 0:00:13]} 39. Rh7 {[%clk 0:00:13]}  gxh4+ {[%clk 0:00:10]} 40. Kxh4 {[%clk 0:00:13]}  Bxc6 {[%clk 0:00:11]} 41. Rxh6+ {[%clk 0:00:13]}  Ke5 {[%clk 0:00:11]} 42. Bxc6 {[%clk 0:00:13]}  Rxc6 {[%clk 0:00:12]} 43. Kg5 {[%clk 0:00:13]}  Rc3 {[%clk 0:00:10]} 44. f4+ {[%clk 0:00:14]}  Kd5 {[%clk 0:00:10]} 45. g4 {[%clk 0:00:14]}  Rg3 {[%clk 0:00:10]} 46. Rh4 {[%clk 0:00:14]}  Rxg4+ {[%clk 0:00:10]} 47. Rxg4 {[%clk 0:00:15]}  fxg4 {[%clk 0:00:11]} 48. Kxg4 {[%clk 0:00:16]}  Ke4 {[%clk 0:00:10]} 49. Kg5 {[%clk 0:00:15]}  a4 {[%clk 0:00:09]} 50. Kg4 {[%clk 0:00:14]}  Kd4 {[%clk 0:00:09]} 51. Kg5 {[%clk 0:00:15]}  Kc3 {[%clk 0:00:09]} 52. Kf6 {[%clk 0:00:16]}  Kb3 {[%clk 0:00:10]} 53. Kxe6 {[%clk 0:00:16]}  Kxa3 {[%clk 0:00:11]} 54. f5 {[%clk 0:00:17]}  Kb2 {[%clk 0:00:12]} 55. f6 {[%clk 0:00:18]}  a3 {[%clk 0:00:13]} 56. f7 {[%clk 0:00:19]}  a2 {[%clk 0:00:14]} 57. f8=Q {[%clk 0:00:19]}  a1=Q {[%clk 0:00:14]} 58. Qf6+ {[%clk 0:00:20]}  Kb1 {[%clk 0:00:15]} 59. Qxa1+ {[%clk 0:00:20]}  Kxa1 {[%clk 0:00:16]} 1/2-1/2


[Site "https://www.chess.com"]

[Event "Titled Tuesday Blitz July 11 Late 2023"]
[White "Fernandez Siles, Luis"]
[Black "HamedWafa4"]
[WhiteFideId "2209420"]
[WhiteElo "2366"]
[BlackElo "2594"]
[Result "0-1"]
[Round "2"]
[TimeControl "180+2"]
[Date "2023.07.11"]
[WhiteClock "0:00:00"]
[BlackClock "0:00:24"]
[Board "128"]

1. e4 {[%clk 0:03:00]}  e5 {[%clk 0:02:57]} 2. Nf3 {[%clk 0:03:00]}  Nc6 {[%clk 0:02:56]} 3. Bb5 {[%clk 0:03:00]}  a6 {[%clk 0:02:56]} 4. Ba4 {[%clk 0:03:00]}  Nf6 {[%clk 0:02:56]} 5. O-O {[%clk 0:03:00]}  Be7 {[%clk 0:02:56]} 6. Re1 {[%clk 0:03:00]}  b5 {[%clk 0:02:56]} 7. Bb3 {[%clk 0:02:59]}  O-O {[%clk 0:02:57]} 8. d4 {[%clk 0:02:59]}  Nxd4 {[%clk 0:02:56]} 9. Bxf7+ {[%clk 0:02:35]}  Rxf7 {[%clk 0:02:54]} 10. Nxe5 {[%clk 0:02:34]}  Rf8 {[%clk 0:02:55]} 11. Qxd4 {[%clk 0:02:33]}  Bb7 {[%clk 0:02:55]} 12. Nc3 {[%clk 0:02:30]}  c5 {[%clk 0:02:48]} 13. Qd3 {[%clk 0:02:26]}  d6 {[%clk 0:02:48]} 14. Nf3 {[%clk 0:02:23]}  b4 {[%clk 0:02:48]} 15. Nd5 {[%clk 0:02:23]}  Nxd5 {[%clk 0:02:48]} 16. exd5 {[%clk 0:02:23]}  Bf6 {[%clk 0:02:46]} 17. c3 {[%clk 0:02:07]}  bxc3 {[%clk 0:02:26]} 18. bxc3 {[%clk 0:02:07]}  c4 {[%clk 0:02:24]} 19. Qxc4 {[%clk 0:01:47]}  Rc8 {[%clk 0:02:22]} 20. Qb3 {[%clk 0:01:36]}  Bxc3 {[%clk 0:02:18]} 21. Bg5 {[%clk 0:01:28]}  Qd7 {[%clk 0:01:58]} 22. Re7 {[%clk 0:01:25]}  Qg4 {[%clk 0:01:58]} 23. Qxb7 {[%clk 0:01:21]}  Bxa1 {[%clk 0:01:55]} 24. h3 {[%clk 0:00:59]}  Qf5 {[%clk 0:01:44]} 25. Qxa6 {[%clk 0:00:48]}  Qg6 {[%clk 0:01:36]} 26. Re1 {[%clk 0:00:33]}  Bf6 {[%clk 0:01:14]} 27. Qxd6 {[%clk 0:00:29]}  Bxg5 {[%clk 0:01:01]} 28. Qxg6 {[%clk 0:00:29]}  hxg6 {[%clk 0:01:02]} 29. Nxg5 {[%clk 0:00:30]}  Rf5 {[%clk 0:01:03]} 30. d6 {[%clk 0:00:26]}  Rd8 {[%clk 0:00:57]} 31. Ne4 {[%clk 0:00:24]}  Ra5 {[%clk 0:00:55]} 32. Re2 {[%clk 0:00:24]}  Rda8 {[%clk 0:00:50]} 33. g4 {[%clk 0:00:18]}  Rxa2 {[%clk 0:00:49]} 34. Rxa2 {[%clk 0:00:16]}  Rxa2 {[%clk 0:00:50]} 35. d7 {[%clk 0:00:17]}  Ra1+ {[%clk 0:00:50]} 36. Kg2 {[%clk 0:00:17]}  Rd1 {[%clk 0:00:51]} 37. Nc5 {[%clk 0:00:16]}  Kf7 {[%clk 0:00:49]} 38. Kf3 {[%clk 0:00:15]}  Ke7 {[%clk 0:00:50]} 39. Kf4 {[%clk 0:00:15]}  Rd5 {[%clk 0:00:49]} 40. Ne4 {[%clk 0:00:13]}  Kxd7 {[%clk 0:00:48]} 41. f3 {[%clk 0:00:13]}  Ke6 {[%clk 0:00:47]} 42. h4 {[%clk 0:00:14]}  Ra5 {[%clk 0:00:47]} 43. Ng5+ {[%clk 0:00:13]}  Ke7 {[%clk 0:00:45]} 44. Ne4 {[%clk 0:00:13]}  Kf7 {[%clk 0:00:42]} 45. Ng5+ {[%clk 0:00:13]}  Kg8 {[%clk 0:00:42]} 46. Ke4 {[%clk 0:00:09]}  Ra4+ {[%clk 0:00:42]} 47. Ke5 {[%clk 0:00:09]}  Ra5+ {[%clk 0:00:38]} 48. Kf4 {[%clk 0:00:08]}  Ra3 {[%clk 0:00:39]} 49. Ne6 {[%clk 0:00:07]}  Kf7 {[%clk 0:00:36]} 50. Ng5+ {[%clk 0:00:08]}  Ke7 {[%clk 0:00:36]} 51. Ne4 {[%clk 0:00:08]}  Ra5 {[%clk 0:00:34]} 52. Ng5 {[%clk 0:00:08]}  Kd6 {[%clk 0:00:34]} 53. Ne4+ {[%clk 0:00:08]}  Kc6 {[%clk 0:00:34]} 54. Ng3 {[%clk 0:00:06]}  Rd5 {[%clk 0:00:31]} 55. h5 {[%clk 0:00:06]}  g5+ {[%clk 0:00:31]} 56. Ke4 {[%clk 0:00:06]}  Ra5 {[%clk 0:00:24]} 57. Nf5 {[%clk 0:00:07]}  Ra7 {[%clk 0:00:24]} 58. Ke5 {[%clk 0:00:06]}  Kd7 {[%clk 0:00:23]} 59. Nxg7 {[%clk 0:00:06]}  Ke7 {[%clk 0:00:24]} 60. Kf5 {[%clk 0:00:06]}  Kf7 {[%clk 0:00:23]} 61. h6 {[%clk 0:00:05]}  Ra5+ {[%clk 0:00:23]} 62. Ke4 {[%clk 0:00:00]}  Kg6 {[%clk 0:00:24]} 0-1


[Site "https://www.chess.com"]

[Event "Titled Tuesday Blitz July 11 Late 2023"]
[White "Lizak, Peter"]
[Black "Harriott, Tyrell"]
[WhiteFideId "731595"]
[BlackFideId "2086484"]
[WhiteElo "2591"]
[BlackElo "2365"]
[Result "0-1"]
[Round "2"]
[TimeControl "180+2"]
[Date "2023.07.11"]
[WhiteClock "0:00:02"]
[BlackClock "0:00:35"]
[Board "129"]

1. d4 {[%clk 0:03:00]}  e6 {[%clk 0:02:52]} 2. Nf3 {[%clk 0:02:59]}  d5 {[%clk 0:02:52]} 3. Bf4 {[%clk 0:02:59]}  Bd6 {[%clk 0:02:51]} 4. e3 {[%clk 0:02:59]}  Ne7 {[%clk 0:02:51]} 5. Bd3 {[%clk 0:02:59]}  f5 {[%clk 0:02:45]} 6. Nbd2 {[%clk 0:02:54]}  Ng6 {[%clk 0:02:44]} 7. Bxd6 {[%clk 0:02:42]}  cxd6 {[%clk 0:02:41]} 8. h4 {[%clk 0:02:43]}  O-O {[%clk 0:02:39]} 9. h5 {[%clk 0:02:43]}  Nh8 {[%clk 0:02:40]} 10. h6 {[%clk 0:02:40]}  g6 {[%clk 0:02:40]} 11. c4 {[%clk 0:02:39]}  dxc4 {[%clk 0:02:33]} 12. Nxc4 {[%clk 0:02:40]}  Nf7 {[%clk 0:02:33]} 13. Qb3 {[%clk 0:02:38]}  b6 {[%clk 0:02:22]} 14. O-O-O {[%clk 0:02:35]}  Bb7 {[%clk 0:02:20]} 15. Kb1 {[%clk 0:02:34]}  Bd5 {[%clk 0:02:17]} 16. Qa3 {[%clk 0:02:34]}  Nc6 {[%clk 0:02:15]} 17. Rc1 {[%clk 0:02:27]}  e5 {[%clk 0:02:05]} 18. dxe5 {[%clk 0:02:09]}  dxe5 {[%clk 0:02:04]} 19. Rhd1 {[%clk 0:01:58]}  e4 {[%clk 0:01:54]} 20. Be2 {[%clk 0:01:57]}  exf3 {[%clk 0:01:50]} 21. Bxf3 {[%clk 0:01:54]}  Bxf3 {[%clk 0:01:47]} 22. Rxd8 {[%clk 0:01:54]}  Be4+ {[%clk 0:01:44]} 23. Rd3 {[%clk 0:01:42]}  Rfd8 {[%clk 0:01:43]} 24. Rd1 {[%clk 0:01:42]}  Rxd3 {[%clk 0:01:32]} 25. Rxd3 {[%clk 0:01:33]}  Rd8 {[%clk 0:01:32]} 26. Qc3 {[%clk 0:00:58]}  Nxh6 {[%clk 0:01:28]} 27. Nd6 {[%clk 0:00:42]}  Rxd6 {[%clk 0:01:25]} 28. Qc4+ {[%clk 0:00:42]}  Nf7 {[%clk 0:01:22]} 29. Ka1 {[%clk 0:00:23]}  Rxd3 {[%clk 0:01:12]} 30. b3 {[%clk 0:00:22]}  a5 {[%clk 0:01:02]} 31. f3 {[%clk 0:00:19]}  Rd1+ {[%clk 0:01:00]} 32. Kb2 {[%clk 0:00:20]}  Rd2+ {[%clk 0:01:00]} 33. Ka3 {[%clk 0:00:17]}  Bb1 {[%clk 0:00:58]} 34. Ka4 {[%clk 0:00:15]}  Na7 {[%clk 0:00:48]} 35. Qc3 {[%clk 0:00:02]}  Rxa2# {[%clk 0:00:35]} 0-1


[Site "https://www.chess.com"]